fUSD/lending_fUSD_20251130
["ID","MTS","AMOUNT","RATE_DAILY","PERIOD"]
[395186191,1764526262226,-764.6613131,0.00027397,2]
[395186192,1764526262235,-764.6613131,0.00027397,2]
[395186193,1764526262244,-764.6613131,0.00027397,2]
[395186194,1764526262254,-764.6613131,0.00027397,2]
[395186195,1764526262263,-764.6613131,0.00027397,2]
[395186196,1764526262273,-764.6613131,0.00027397,2]
[395186197,1764526262283,-764.6613131,0.00027397,2]
[395186198,1764526262293,-764.6613131,0.00027397,2]
[395186199,1764526262303,-764.6613131,0.00027397,2]
[395186200,1764526262312,-764.6613131,0.00027397,2]
[395186201,1764526262322,-764.6613131,0.00027397,2]
[395186202,1764526262332,-764.6613131,0.00027397,2]
[395186203,1764526262342,-764.6613131,0.00027397,2]
[395186204,1764526262352,-764.6613131,0.00027397,2]
[395186205,1764526262362,-764.6613131,0.00027397,2]
[395186206,1764526262371,-764.6613131,0.00027397,2]
[395186207,1764526262380,-764.6613131,0.00027397,2]
[395186208,1764526262389,-764.6613131,0.00027397,2]
[395186209,1764526262399,-764.6613131,0.00027397,2]
[395186210,1764526262408,-764.6613131,0.00027397,2]
[395186211,1764526262417,-764.6613131,0.00027397,2]
[395186212,1764526262427,-764.6613131,0.00027397,2]
[395186213,1764526262436,-764.6613131,0.00027397,2]
[395186214,1764526262445,-764.6613131,0.00027397,2]
[395186215,1764526262454,-764.6613131,0.00027397,2]
[395186216,1764526262463,-764.6613131,0.00027397,2]
[395186217,1764526262472,-764.6613131,0.00027397,2]
[395186218,1764526262481,-764.6613131,0.00027397,2]
[395186219,1764526262490,-764.6613131,0.00027397,2]
[395186220,1764526262499,-764.6613131,0.00027397,2]
[395186221,1764526262508,-764.6613131,0.00027397,2]
[395186222,1764526262517,-764.6613131,0.00027397,2]
[395186223,1764526262527,-764.6613131,0.00027397,2]
[395186224,1764526262536,-764.6613131,0.00027397,2]
[395186225,1764526262545,-764.6613131,0.00027397,2]
[395186226,1764526262554,-764.6613131,0.00027397,2]
[395186227,1764526262563,-764.6613131,0.00027397,2]
[395186228,1764526262572,-764.6613131,0.00027397,2]
[395186229,1764526262581,-764.6613131,0.00027397,2]
[395186230,1764526262591,-764.6613131,0.00027397,2]
[395186231,1764526262602,-764.6613131,0.00027397,2]
[395186232,1764526262612,-764.6613131,0.00027397,2]
[395186233,1764526262621,-764.6613131,0.00027397,2]
[395186234,1764526262631,-764.6613131,0.00027397,2]
[395186235,1764526262642,-764.6613131,0.00027397,2]
[395186236,1764526262651,-764.6613131,0.00027397,2]
[395186237,1764526262663,-764.6613131,0.00027397,2]
[395186238,1764526262672,-764.6613131,0.00027397,2]
[395186239,1764526262682,-764.6613131,0.00027397,2]
[395186240,1764526262691,-500.0,0.00027397,2]
[395186241,1764526262703,-300.0,0.00027397,2]
[395186242,1764526262712,-500.0,0.00027397,8]
[395186243,1764526262722,-287.53,0.00027397,2]
[395186244,1764526262732,-151.0,0.00027397,7]
[395186245,1764526262742,-151.0,0.00027397,7]
[395186246,1764526262751,-151.0,0.00027397,7]
[395186247,1764526262760,-263.555258,0.00027397,7]
[395186248,1764526262769,-151.0,0.00027397,7]
[395186249,1764526262779,-151.0,0.00027397,7]
[395186250,1764526262789,-151.0,0.00027397,7]
[395186251,1764526262800,-151.0,0.00027397,7]
[395186252,1764526262810,-151.0,0.00027397,7]
[395186253,1764526262819,-151.0,0.00027397,7]
[395186254,1764526262828,-151.0,0.00027397,7]
[395186255,1764526262837,-151.0,0.00027397,7]
[395186256,1764526262847,-151.0,0.00027397,7]
[395186257,1764526262856,-151.0,0.00027397,7]
[395186258,1764526262866,-151.0,0.00027397,7]
[395186259,1764526262875,-151.0,0.00027397,7]
[395186260,1764526262884,-151.0,0.00027397,7]
[395186261,1764526262893,-151.0,0.00027397,7]
[395186262,1764526262902,-281.383006,0.00027397,7]
[395186263,1764526262911,-215.52586136,0.00027397,5]
[395186264,1764526262921,-157.65218016,0.00027397,5]
[395186265,1764526262930,-1371.1,0.000274,2]
[395186266,1764526262939,-182.37,0.000274,7]
[395186267,1764526262949,-426.74,0.000274,2]
[395186268,1764526262960,-426.74,0.000274,2]
[395186269,1764526262969,-426.74,0.000274,2]
[395186270,1764526262980,-426.74,0.000274,2]
[395186271,1764526262988,-426.74,0.000274,2]
[395186272,1764526262998,-25000.0,0.00027417,7]
[395186273,1764526263007,-25000.0,0.00027426,7]
[395186274,1764526263016,-25000.0,0.00027435,7]
[395186275,1764526263025,-22025.02073392,0.00027435,7]
[395186276,1764526263035,-1300.0,0.00027462,7]
[395186277,1764526263046,-702.51,0.00027529,2]
[395186278,1764526263057,-1136.52,0.00027653,120]
[395186279,1764526263066,-1400.0,0.00027687,14]
[395186280,1764526263076,-527.89946795,0.00027743,7]
[395186281,1764526263087,-610.0,0.00027775,2]
[395186282,1764526263096,-3442.0,0.00027775,2]
[395186283,1764526263106,-558.76,0.00027782,120]
[395186284,1764526263115,-2917.55,0.000278,7]
[395186285,1764526263126,-1300.0,0.00027801,7]
[395186286,1764526263135,-509.47679589,0.00027852,7]
[395186287,1764526263145,-347.95268734,0.00027861,2]
[395186288,1764526263154,-1300.0,0.00027929,7]
[395186289,1764526263163,-500.0,0.00027961,14]
[395186290,1764526263173,-600.0,0.00027961,14]
[395186291,1764526263182,-5455.3,0.00027999,120]
[395186292,1764526263192,-70730.87539318,0.00028,2]
[395186293,1764526263201,-50436.41009419,0.00028,2]
[395186294,1764526263211,-427.55165138,0.00028,7]
[395186295,1764526263220,-430.0,0.00028,2]
[395186296,1764526263229,-1018.04203499,0.00028,7]
[395186297,1764526263239,-12649.0,0.00028036,2]
[395186298,1764526263248,-2000.0,0.000281,2]
[395186299,1764526263258,-4000.0,0.0002811,7]
[395186300,1764526263267,-344.91441206,0.00028179,2]
[395186301,1764526263276,-668.65185757,0.00028183,2]
[395186302,1764526263286,-4000.0,0.00028186,7]
[395186303,1764526263295,-500.0,0.00028208,7]
[395186304,1764526263304,-182.37,0.000283,7]
[395186305,1764526263313,-500.0,0.00028377,7]
[395186306,1764526263322,-1371.1,0.000284,2]
[395186307,1764526263331,-1400.0,0.00028509,14]
[395186308,1764526263341,-500.0,0.00028532,7]
[395186309,1764526263351,-1300.0,0.00028589,7]
[395186310,1764526263360,-4000.0,0.000287,7]
[395186311,1764526263370,-834.40732908,0.00028756,7]
[395186312,1764526263379,-1136.52,0.00028869,120]
[395186313,1764526263388,-400.0,0.0002887,2]
[395186314,1764526263398,-300.42528225,0.0002887,2]
[395186315,1764526263408,-250.0,0.000289,4]
[395186316,1764526263418,-250.0,0.000289,4]
[395186317,1764526263428,-250.0,0.000289,4]
[395186318,1764526263437,-250.0,0.000289,4]
[395186319,1764526263447,-250.0,0.000289,4]
[395186320,1764526263456,-250.0,0.000289,4]
[395186321,1764526263465,-250.0,0.000289,4]
[395186322,1764526263475,-250.0,0.000289,4]
[395186323,1764526263484,-550.0,0.00029,2]
[395186324,1764526263494,-300.0,0.00029173,2]
[395186325,1764526263503,-150.0,0.00029173,2]
[395186326,1764526263513,-833.56,0.00029173,2]
[395186327,1764526263523,-150.0,0.00029173,2]
[395186328,1764526263533,-558.76,0.0002918,120]
[395186329,1764526263543,-2917.55,0.000292,7]
[395186330,1764526263553,-182.37,0.000292,7]
[395186331,1764526263563,-234.36046869,0.00029214,2]
[395186332,1764526263573,-727.17647388,0.00029365,2]
[395186333,1764526263583,-288.68888597,0.00029365,2]
[395186334,1764526263593,-5441.32371478,0.00029369,7]
[395186335,1764526263602,-1300.0,0.00029399,7]
[395186336,1764526263612,-357.6762453,0.00029548,2]
[395186337,1764526263621,-176.52,0.00029558,30]
[395186338,1764526263631,-475.96245732,0.00029605,14]
[395186339,1764526263640,-600.0,0.00029605,14]
[395186340,1764526263650,-1300.0,0.00029671,7]
[395186341,1764526263659,-500.0,0.00029684,7]
[395186342,1764526263668,-1371.1,0.000297,2]
[395186343,1764526263679,-509.66302487,0.0002976,7]
[395186344,1764526263688,-1523.72387937,0.00029792,7]
[395186345,1764526263697,-288.21734295,0.00029846,2]
[395186346,1764526263707,-500.0,0.00029863,2]
[395186347,1764526263716,-151.0,0.00029899,7]
[395186348,1764526263726,-151.0,0.00029899,7]
[395186349,1764526263735,-151.0,0.00029899,7]
[395186350,1764526263745,-502.657011,0.00029899,7]
[395186351,1764526263754,-151.0,0.00029899,7]
[395186352,1764526263765,-502.657011,0.00029899,7]
[395186353,1764526263774,-502.657011,0.00029899,7]
[395186354,1764526263784,-502.657019,0.00029899,7]
[395186355,1764526263794,-247.319282,0.00029899,7]
[395186356,1764526263804,-413.347242,0.00029899,7]
[395186357,1764526263814,-247.319282,0.00029899,7]
[395186358,1764526263824,-247.319282,0.00029899,7]
[395186359,1764526263834,-413.347242,0.00029899,7]
[395186360,1764526263844,-247.319278,0.00029899,7]
[395186361,1764526263854,-413.347242,0.00029899,7]
[395186362,1764526263863,-413.347242,0.00029899,7]
[395186363,1764526263873,-151.0,0.00029899,7]
[395186364,1764526263882,-151.0,0.00029899,7]
[395186365,1764526263894,-237.989472,0.00029899,7]
[395186366,1764526263905,-526.680662,0.00029899,7]
[395186367,1764526263915,-526.680662,0.00029899,7]
[395186368,1764526263924,-526.680662,0.00029899,7]
[395186369,1764526263934,-526.680655,0.00029899,7]
[395186370,1764526263945,-151.0,0.00029899,7]
[395186371,1764526263954,-151.0,0.00029899,7]
[395186372,1764526263964,-151.0,0.00029899,7]
[395186373,1764526263974,-151.0,0.00029899,7]
[395186374,1764526263983,-663.777879,0.00029899,7]
[395186375,1764526263993,-283.751188,0.00029899,7]
[395186376,1764526264003,-663.777879,0.00029899,7]
[395186377,1764526264013,-663.777879,0.00029899,7]
[395186378,1764526264022,-663.777872,0.00029899,7]
[395186379,1764526264031,-151.0,0.00029899,7]
[395186380,1764526264042,-151.0,0.00029899,7]
[395186381,1764526264052,-151.0,0.00029899,7]
[395186382,1764526264062,-151.0,0.00029899,7]
[395186383,1764526264072,-1828.868881,0.00029899,7]
[395186384,1764526264082,-343.728469,0.00029899,7]
[395186385,1764526264092,-1828.868881,0.00029899,7]
[395186386,1764526264102,-343.728469,0.00029899,7]
[395186387,1764526264111,-1828.868881,0.00029899,7]
[395186388,1764526264122,-343.728469,0.00029899,7]
[395186389,1764526264131,-1828.868874,0.00029899,7]
[395186390,1764526264140,-343.728473,0.00029899,7]
[395186391,1764526264149,-1052.506512,0.00029899,7]
[395186392,1764526264159,-1052.506512,0.00029899,7]
[395186393,1764526264167,-1052.506512,0.00029899,7]
[395186394,1764526264178,-1052.506512,0.00029899,7]
[395186395,1764526264189,-151.0,0.00029899,7]
[395186396,1764526264198,-241.0,0.00029899,7]
[395186397,1764526264207,-78215.35694101,0.000299,2]
[395186398,1764526264216,-1321.0,0.00029953,2]
[395186399,1764526264226,-640.0,0.00029953,2]
[395186400,1764526264235,-1258.0,0.00029953,2]
[395186401,1764526264244,-2718.0,0.00029953,2]
[395186402,1764526264255,-1213.19,0.00029995,2]
[395186403,1764526264265,-551.8,0.00029995,2]
[395186404,1764526264275,-150.0,0.00029998,2]
[395186405,1764526264285,-500.0,0.00029999,120]
[395186406,1764526264295,-500.0,0.00029999,120]
[395186407,1764526264305,-500.0,0.00029999,120]
[395186408,1764526264315,-151.0,0.00029999,7]
[395186409,1764526264325,-719.816437,0.00029999,7]
[395186410,1764526264334,-719.816437,0.00029999,7]
[395186411,1764526264343,-719.816437,0.00029999,7]
[395186412,1764526264353,-719.816437,0.00029999,7]
[395186413,1764526264362,-2076.58,0.0003,15]
[395186414,1764526264372,-1007.0,0.0003,12]
[395186415,1764526264381,-382.0,0.0003,7]
[395186416,1764526264391,-1000.0,0.0003,7]
[395186417,1764526264401,-1000.0,0.0003,120]
[395186418,1764526264411,-1000.0,0.0003,120]
[395186419,1764526264420,-427.55165138,0.0003,120]
[395186420,1764526264429,-151.0,0.0003,7]
[395186421,1764526264438,-185.47,0.0003,22]
[395186422,1764526264448,-287.53,0.00030137,2]
[395186423,1764526264458,-1400.0,0.00030153,14]
[395186424,1764526264468,-152.0,0.00030172,3]
[395186425,1764526264477,-702.51,0.00030466,2]
[395186426,1764526264487,-182.37,0.000305,7]
[395186427,1764526264496,-1341.98116508,0.0003058,2]
[395186428,1764526264506,-610.0,0.00030775,2]
[395186429,1764526264515,-3442.0,0.00030775,2]
[395186430,1764526264524,-552.02,0.0003082,2]
[395186431,1764526264534,-500.0,0.00030899,14]
[395186432,1764526264544,-500.0,0.00030899,14]
[395186433,1764526264554,-500.0,0.00030899,14]
[395186434,1764526264563,-500.0,0.00030899,14]
[395186435,1764526264572,-500.0,0.00030899,14]
[395186436,1764526264582,-500.0,0.00030899,14]
[395186437,1764526264591,-500.0,0.00030899,14]
[395186438,1764526264600,-500.0,0.00030899,14]
[395186439,1764526264610,-500.0,0.00030899,14]
[395186440,1764526264619,-500.0,0.00030899,14]
[395186441,1764526264628,-2917.55,0.000309,7]
[395186442,1764526264638,-370.91026638,0.00030917,2]
[395186443,1764526264647,-355.15655912,0.00030922,2]
[395186444,1764526264657,-152.0,0.00030933,4]
[395186445,1764526264667,-558.76,0.00030949,120]
[395186446,1764526264676,-5455.3,0.00030949,120]
[395186447,1764526264686,-78293.93948935,0.0003095,2]
[395186448,1764526264696,-151.0,0.0003095,31]
[395186449,1764526264706,-161.09229,0.0003095,31]
[395186450,1764526264717,-500.0,0.00030988,14]
[395186451,1764526264727,-1371.1,0.00031,2]
[395186452,1764526264737,-600.0,0.00031,2]
[395186453,1764526264746,-600.0,0.00031249,14]
[395186454,1764526264755,-181.04,0.00031507,120]
[395186455,1764526264765,-218.79797448,0.00031526,120]
[395186456,1764526264774,-150.0,0.00031598,2]
[395186457,1764526264783,-150.0,0.00031598,2]
[395186458,1764526264793,-150.0,0.00031598,2]
[395186459,1764526264802,-150.0,0.00031598,2]
[395186460,1764526264811,-150.0,0.00031598,2]
[395186461,1764526264821,-150.0,0.00031598,2]
[395186462,1764526264830,-552.02,0.00031598,2]
[395186463,1764526264839,-1102.7,0.00031598,2]
[395186464,1764526264849,-170.01,0.00031598,2]
[395186465,1764526264859,-552.02,0.00031598,2]
[395186466,1764526264870,-1213.78,0.00031598,2]
[395186467,1764526264881,-339.65,0.00031598,2]
[395186468,1764526264890,-1213.78,0.00031598,2]
[395186469,1764526264900,-1104.04,0.00031598,2]
[395186470,1764526264909,-170.01,0.00031598,2]
[395186471,1764526264919,-1213.78,0.00031598,2]
[395186472,1764526264928,-170.01,0.00031598,2]
[395186473,1764526264939,-170.01,0.00031598,2]
[395186474,1764526264949,-1213.78,0.00031598,2]
[395186475,1764526264959,-177.88,0.00031598,2]
[395186476,1764526264968,-1213.78,0.00031598,2]
[395186477,1764526264978,-170.01,0.00031598,2]
[395186478,1764526264987,-1213.78,0.00031598,2]
[395186479,1764526264996,-177.88,0.00031598,2]
[395186480,1764526265005,-170.01,0.00031598,2]
[395186481,1764526265014,-177.88,0.00031598,2]
[395186482,1764526265023,-1213.78,0.00031598,2]
[395186483,1764526265033,-177.88,0.00031598,2]
[395186484,1764526265043,-1213.78,0.00031598,2]
[395186485,1764526265058,-170.01,0.00031598,2]
[395186486,1764526265069,-1213.78,0.00031598,2]
[395186487,1764526265087,-177.88,0.00031598,2]
[395186488,1764526265097,-152.0,0.00031694,5]
[395186489,1764526265107,-1400.0,0.00031797,14]
[395186490,1764526265116,-2000.0,0.000318,2]
[395186491,1764526265126,-182.37,0.000318,7]
[395186492,1764526265135,-347.95268734,0.00031874,2]
[395186493,1764526265145,-213.70809034,0.00032,120]
[395186494,1764526265154,-166.3955382,0.00032,120]
[395186495,1764526265163,-179.21948029,0.00032,120]
[395186496,1764526265171,-196.81039577,0.00032,120]
[395186497,1764526265181,-155.08,0.00032,5]
[395186498,1764526265190,-240.06,0.00032,14]
[395186499,1764526265199,-176.52,0.00032077,30]
[395186500,1764526265208,-384.63394623,0.00032286,2]
[395186501,1764526265218,-1213.78,0.0003242,2]
[395186502,1764526265227,-152.0,0.00032455,6]
[395186503,1764526265236,-1136.52,0.00032733,120]
[395186504,1764526265245,-1054.45427145,0.00032733,7]
[395186505,1764526265254,-447.56581728,0.000328,2]
[395186506,1764526265263,-500.0,0.00032876,30]
[395186507,1764526265272,-601.18,0.00032876,120]
[395186508,1764526265281,-395.21744574,0.00032876,2]
[395186509,1764526265291,-170.19194733,0.00032876,2]
[395186510,1764526265299,-488.21436077,0.00032876,2]
[395186511,1764526265309,-648.26194054,0.00032876,2]
[395186512,1764526265318,-500.0,0.00032876,2]
[395186513,1764526265328,-500.0,0.00032876,2]
[395186514,1764526265338,-356.48507741,0.00032876,2]
[395186515,1764526265348,-561.40490977,0.00032876,2]
[395186516,1764526265357,-764.6613131,0.00032876,2]
[395186517,1764526265367,-764.6613131,0.00032876,2]
[395186518,1764526265376,-764.6613131,0.00032876,2]
[395186519,1764526265386,-764.6613131,0.00032876,2]
[395186520,1764526265395,-764.6613131,0.00032876,2]
[395186521,1764526265404,-764.6613131,0.00032876,2]
[395186522,1764526265414,-764.6613131,0.00032876,2]
[395186523,1764526265423,-764.6613131,0.00032876,2]
[395186524,1764526265432,-764.6613131,0.00032876,2]
[395186525,1764526265441,-287.53,0.00032877,2]
[395186526,1764526265659,-252.204968,0.00032877,31]
[395186527,1764526265669,-252.204968,0.00032877,31]
[395186528,1764526265679,-252.204968,0.00032877,31]
[395186529,1764526265689,-252.204968,0.00032877,31]
[395186530,1764526265699,-252.204968,0.00032877,31]
[395186531,1764526265708,-252.204968,0.00032877,31]
[395186532,1764526265718,-252.204968,0.00032877,31]
[395186533,1764526265727,-252.204968,0.00032877,31]
[395186534,1764526265737,-252.204968,0.00032877,31]
[395186535,1764526265746,-252.204968,0.00032877,31]
[395186536,1764526265756,-252.204968,0.00032877,31]
[395186537,1764526265767,-252.204968,0.00032877,31]
[395186538,1764526265776,-252.204968,0.00032877,31]
[395186539,1764526265786,-252.204968,0.00032877,31]
[395186540,1764526265795,-252.204968,0.00032877,31]
[395186541,1764526265805,-252.204968,0.00032877,31]
[395186542,1764526265814,-150.787591,0.00032877,60]
[395186543,1764526265824,-500.0,0.00032877,7]
[395186544,1764526265834,-500.0,0.00032877,7]
[395186545,1764526265843,-500.0,0.00032877,7]
[395186546,1764526265852,-500.0,0.00032877,7]
[395186547,1764526265862,-500.0,0.00032877,7]
[395186548,1764526265871,-500.0,0.00032877,7]
[395186549,1764526265881,-500.0,0.00032877,7]
[395186550,1764526265890,-500.0,0.00032877,7]
[395186551,1764526265898,-500.0,0.00032877,7]
[395186552,1764526265907,-500.0,0.00032877,7]
[395186553,1764526265916,-500.0,0.00032877,7]
[395186554,1764526265925,-500.0,0.00032877,7]
[395186555,1764526265935,-500.0,0.00032877,7]
[395186556,1764526265944,-500.0,0.00032877,7]
[395186557,1764526265953,-500.0,0.00032877,7]
[395186558,1764526265962,-500.0,0.00032877,7]
[395186559,1764526265971,-500.0,0.00032877,7]
[395186560,1764526265981,-615.70425148,0.00032877,7]
[395186561,1764526265990,-512.85602794,0.00032877,7]
[395186562,1764526265999,-500.0,0.00032877,7]
[395186563,1764526266008,-600.0,0.00032893,14]
[395186564,1764526266017,-1321.0,0.00032953,2]
[395186565,1764526266029,-184.6,0.00032953,2]
[395186566,1764526266038,-1258.0,0.00032953,2]
[395186567,1764526266053,-2718.0,0.00032953,2]
[395186568,1764526266062,-51102.80819298,0.00033,2]
[395186569,1764526266071,-213.70809034,0.00033,120]
[395186570,1764526266081,-2917.55,0.00033,14]
[395186571,1764526266090,-650.0,0.00033,2]
[395186572,1764526266099,-558.76,0.00033076,120]
[395186573,1764526266108,-426.91,0.000331,120]
[395186574,1764526266118,-692.77,0.00033165,2]
[395186575,1764526266127,-182.37,0.000332,14]
[395186576,1764526266137,-152.0,0.00033216,7]
[395186577,1764526266147,-1400.0,0.00033441,14]
[395186578,1764526266156,-398.86540225,0.00033655,2]
[395186579,1764526266166,-601.18,0.00033698,120]
[395186580,1764526266175,-610.0,0.00033775,2]
[395186581,1764526266185,-3442.0,0.00033775,2]
[395186582,1764526266196,-800.0,0.00033899,14]
[395186583,1764526266206,-800.0,0.00033899,14]
[395186584,1764526266217,-800.0,0.00033899,14]
[395186585,1764526266227,-800.0,0.00033899,14]
[395186586,1764526266237,-800.0,0.00033899,14]
[395186587,1764526266248,-505.47277289,0.00033939,60]
[395186588,1764526266258,-152.0,0.00033977,8]
[395186589,1764526266267,-1371.1,0.00034,2]
[395186590,1764526266276,-732.16,0.00034127,2]
[395186591,1764526266286,-2000.0,0.0003422,120]
[395186592,1764526266296,-500.0,0.00034246,30]
[395186593,1764526266305,-11492.08052759,0.00034463,7]
[395186594,1764526266324,-2732.91947241,0.00034463,7]
[395186595,1764526266333,-601.18,0.0003452,120]
[395186596,1764526266344,-600.0,0.00034537,14]
[395186597,1764526266354,-176.52,0.00034597,30]
[395186598,1764526266363,-182.37,0.000346,14]
[395186599,1764526266373,-152.0,0.00034738,9]
[395186600,1764526266382,-203.0,0.0003488,30]
[395186601,1764526266392,-16239.05500997,0.00035,35]
[395186602,1764526266403,-580.0,0.00035,35]
[395186603,1764526266414,-1423.75678316,0.00035,35]
[395186604,1764526266425,-9898.5,0.00035,35]
[395186605,1764526266633,-151.0,0.000248,7]
[395186606,1764526266643,-577.12398028,0.00027397,2]
[395186607,1764526266660,-164.00929241,0.00027397,2]
[395186608,1764526266670,-738.99070759,0.00027397,2]
[395186609,1764526266685,-2.1425651,0.00027397,2]
[395186610,1764526266695,-276.6329549,0.00027397,2]
[395186611,1764526266711,-406.715074,0.00027397,2]
[395186612,1764526413116,157.83,0.00019621,30]
[395186619,1764526581476,-1206.001,0.00014005,2]
[395186620,1764526581498,-195.0,0.00014148,2]
[395186621,1764526581519,-279.18679479,0.00014191,2]
[395186622,1764526581541,-300.0,0.00014289,2]
[395186623,1764526581563,-1200.0,0.0001429,2]
[395186624,1764526581584,-300.0,0.0001429,2]
[395186625,1764526581606,-150.0,0.0001429,2]
[395186626,1764526581628,-500.0,0.0001429,2]
[395186627,1764526581650,-219.97289193,0.0001429,2]
[395186628,1764526581672,-500.0,0.0001429,2]
[395186629,1764526581694,-621.79084846,0.0001429,2]
[395186630,1764526581715,-864.23889215,0.0001429,2]
[395186631,1764526581737,-211.64714364,0.0001429,2]
[395186632,1764526581762,-500.0,0.0001429,2]
[395186633,1764526581784,-161.97372963,0.0001429,2]
[395186634,1764526581809,-500.0,0.0001429,2]
[395186635,1764526581834,-500.0,0.0001429,2]
[395186636,1764526581859,-91790.1886994,0.00014291,2]
[395186637,1764526592229,-500.0,0.0001429,2]
[395186638,1764526592255,-500.0,0.0001429,2]
[395186639,1764526592281,-149000.0,0.00014291,2]
[395186640,1764526598933,-50000.0,0.00014291,2]
[395186641,1764526615275,-500.0,0.0001429,2]
[395186642,1764526615297,-500.0,0.0001429,2]
[395186643,1764526615323,-500.0,0.0001429,2]
[395186644,1764526615348,-56300.0,0.00014291,2]
[395186645,1764526638693,-152.76414739,0.00014191,2]
[395186646,1764526638716,-300.0,0.0001429,2]
[395186647,1764526638741,-500.0,0.0001429,2]
[395186648,1764526638763,-195.0,0.00014291,2]
[395186649,1764526638789,-11352.23585261,0.00014291,2]
[395186656,1764526723409,-175.23621143,0.0001419,2]
[395186657,1764526723434,-1361.69041105,0.00014191,2]
[395186658,1764526723456,-329.9797,0.00014191,2]
[395186659,1764526723478,-2500.0,0.00014191,2]
[395186660,1764526723501,-195.0,0.00014241,2]
[395186661,1764526723523,-250.0,0.00014241,2]
[395186662,1764526723545,-524.40679433,0.0001429,2]
[395186663,1764526723567,-150.0,0.0001429,2]
[395186664,1764526723591,-500.0,0.0001429,2]
[395186665,1764526723614,-500.0,0.0001429,2]
[395186666,1764526723638,-500.0,0.0001429,2]
[395186667,1764526723661,-500.0,0.0001429,2]
[395186668,1764526723683,-250.0,0.0001429,2]
[395186669,1764526723706,-500.0,0.0001429,2]
[395186670,1764526723729,-500.0,0.0001429,2]
[395186671,1764526723752,-500.0,0.0001429,2]
[395186672,1764526723775,-300.0,0.0001429,2]
[395186673,1764526723795,-501.32996164,0.0001429,2]
[395186674,1764526723817,-500.0,0.0001429,2]
[395186675,1764526723840,-500.0,0.0001429,2]
[395186676,1764526723862,-500.0,0.0001429,2]
[395186677,1764526723886,-500.0,0.0001429,2]
[395186678,1764526723908,-500.0,0.0001429,2]
[395186679,1764526723932,-500.0,0.0001429,2]
[395186680,1764526723955,-500.0,0.0001429,2]
[395186681,1764526723978,-500.0,0.0001429,2]
[395186682,1764526724001,-450.0,0.0001429,2]
[395186683,1764526724025,-500.0,0.0001429,2]
[395186684,1764526724048,-12.35692155,0.0001429,2]
[395186686,1764526781993,-300.0,0.00014289,2]
[395186687,1764526782016,-500.0,0.0001429,2]
[395186688,1764526782040,-500.0,0.0001429,2]
[395186689,1764526782067,-487.64307845,0.0001429,2]
[395186690,1764526782093,-600.0,0.0001429,2]
[395186691,1764526782118,-500.0,0.0001429,2]
[395186692,1764526782143,-500.0,0.0001429,2]
[395186693,1764526782172,-500.0,0.0001429,2]
[395186694,1764526782195,-500.0,0.0001429,2]
[395186695,1764526782219,-500.0,0.0001429,2]
[395186696,1764526782242,-500.0,0.0001429,2]
[395186697,1764526782265,-500.0,0.0001429,2]
[395186698,1764526782288,-500.0,0.0001429,2]
[395186699,1764526782316,-500.0,0.0001429,2]
[395186700,1764526782339,-500.0,0.0001429,2]
[395186701,1764526782363,-500.0,0.0001429,2]
[395186702,1764526782389,-500.0,0.0001429,2]
[395186703,1764526782418,-250.0,0.0001429,2]